bitfinex-derivatives/quotes_BTCF0:USTF0_20250921
["timestamp","ask_amount","ask_price","bid_price","bid_amount"]
[1758487548357,2.12268466,115480.0,115470.0,0.03757]
[1758487551073,1.76188466,115480.0,115470.0,0.03757]
[1758487553270,1.40108466,115480.0,115470.0,0.03757]
[1758487553572,1.76188466,115480.0,115470.0,0.03757]
[1758487554773,1.76188466,115480.0,115470.0,0.124118]
[1758487560577,1.76188466,115480.0,115470.0,0.03757]
[1758487563379,1.76188466,115480.0,115470.0,0.124118]
[1758487564782,1.76188466,115480.0,115470.0,0.03757]
[1758487572083,1.21729424,115480.0,115470.0,0.03757]
[1758487572285,1.76188466,115480.0,115470.0,0.03757]
[1758487574882,0.97744466,115480.0,115470.0,0.03757]
[1758487575090,1.76128466,115480.0,115470.0,0.124118]
[1758487575388,0.97744466,115480.0,115470.0,0.124118]
[1758487575590,1.76124466,115480.0,115470.0,0.124118]
[1758487575992,1.76120466,115480.0,115470.0,0.124118]
[1758487577790,1.40040466,115480.0,115470.0,0.124118]
[1758487590599,1.12804295,115480.0,115470.0,0.124118]
[1758487591394,1.12804295,115480.0,115470.0,0.03757]
[1758487600003,1.12804295,115480.0,115470.0,0.1241181]
[1758487605509,1.1278317,115480.0,115470.0,0.1241181]
[1758487606211,1.1278317,115480.0,115470.0,0.03757]
[1758487611213,1.4886317,115480.0,115470.0,0.03757]
[1758487615525,1.4959917,115480.0,115470.0,0.0014]
[1758487620418,1.4959917,115480.0,115470.0,0.001]
[1758487620828,1.4959917,115480.0,115470.0,0.0014]
[1758487622627,1.4959917,115480.0,115470.0,0.001]
[1758487622819,1.4959917,115480.0,115470.0,0.0014]
[1758487624144,0.7122317,115480.0,115470.0,0.0014]
[1758487624319,1.4951117,115480.0,115470.0,0.0014]
[1758487627929,0.7122317,115480.0,115470.0,0.0014]
[1758487628135,1.4951117,115480.0,115470.0,0.0014]
[1758487628327,0.7122317,115480.0,115470.0,0.0014]
[1758487628631,1.4951117,115480.0,115470.0,0.02387]
[1758487629836,0.7122317,115480.0,115470.0,0.02387]
[1758487630135,1.4951117,115480.0,115470.0,0.02387]
[1758487634332,1.4991117,115480.0,115470.0,0.02387]
[1758487635441,1.5021117,115480.0,115470.0,0.02387]
[1758487637241,1.5021117,115480.0,115470.0,0.1104181]
[1758487639744,1.5021117,115480.0,115470.0,0.02387]
[1758487640643,0.7192317,115480.0,115470.0,0.02387]
[1758487640844,1.5021117,115480.0,115470.0,0.03662]
[1758487641245,1.1413117,115480.0,115470.0,0.123168]
[1758487641945,0.3584317,115480.0,115470.0,0.123168]
[1758487642146,1.1413117,115480.0,115470.0,0.123168]
[1758487642341,0.3584317,115480.0,115470.0,0.123168]
[1758487642556,1.1339517,115480.0,115470.0,0.123168]
[1758487642855,0.3510717,115480.0,115470.0,0.123168]
[1758487643035,1.1339517,115480.0,115470.0,0.123168]
[1758487643349,0.3510717,115480.0,115470.0,0.123168]
[1758487643558,1.1339517,115480.0,115470.0,0.123168]
[1758487647347,0.3510717,115480.0,115470.0,0.123168]
[1758487647548,1.1339117,115480.0,115470.0,0.123168]
[1758487647745,0.07884299,115480.0,115470.0,0.64539671]
[1758487648051,0.86168299,115480.0,115470.0,0.64539671]
[1758487649150,0.83789427,115480.0,115470.0,0.64539671]
[1758487650546,0.83789427,115480.0,115470.0,0.64533498]
[1758487651453,0.05505427,115480.0,115470.0,0.64533498]
[1758487651656,0.03234427,115480.0,115470.0,1.00613498]
[1758487657861,0.03234427,115480.0,115470.0,1.27830196]
[1758487658461,0.03234427,115480.0,115470.0,1.00613498]
[1758487658956,0.03234427,115480.0,115470.0,1.78893498]
[1758487659261,0.03234427,115480.0,115470.0,1.53893498]
[1758487660662,0.03234427,115480.0,115470.0,0.75613498]
[1758487660961,0.03234427,115480.0,115470.0,1.53893498]
[1758487663856,0.03234427,115480.0,115470.0,0.905968]
[1758487664058,0.05448427,115480.0,115470.0,0.483968]
[1758487664263,0.05448427,115480.0,115470.0,1.53889498]
[1758487669764,0.03234427,115480.0,115470.0,0.75613498]
[1758487669961,0.03234427,115480.0,115470.0,1.53889498]
[1758487673865,0.03234427,115480.0,115470.0,1.17809498]
[1758487674167,0.03234427,115480.0,115470.0,1.53885498]
[1758487684573,0.03234427,115480.0,115470.0,0.75613498]
[1758487684872,0.03234427,115480.0,115470.0,1.53885498]
[1758487687979,0.03234427,115480.0,115470.0,1.81102196]
[1758487693989,0.03234427,115480.0,115470.0,2.17182196]
[1758487694588,0.03234427,115480.0,115470.0,2.17178196]
[1758487705495,0.03234427,115480.0,115470.0,2.42178196]
[1758487708603,0.03234427,115480.0,115470.0,1.63910196]
[1758487708802,0.03234427,115480.0,115470.0,2.42170196]
[1758487712606,0.03234427,115480.0,115470.0,2.42149748]
[1758487715107,0.03234427,115480.0,115470.0,1.63889748]
[1758487715406,0.03234427,115480.0,115470.0,2.42149748]
[1758487715607,0.03234427,115480.0,115470.0,1.63889748]
[1758487715905,0.03234427,115480.0,115470.0,2.42149748]
[1758487716307,0.012,115480.0,115470.0,2.42149748]
[1758487719307,0.012,115480.0,115470.0,2.17149748]
[1758487738625,0.012,115480.0,115470.0,1.44989748]
[1758487738827,0.012,115480.0,115470.0,2.17149748]
[1758487740226,0.012,115480.0,115470.0,2.18047389]
[1758487744331,0.012,115480.0,115470.0,1.38889748]
[1758487744531,0.012,115480.0,115470.0,2.17145748]
[1758487746934,0.012,115480.0,115470.0,2.18043352]
[1758487750937,0.012,115480.0,115470.0,2.17145748]
[1758487754936,0.012,115480.0,115470.0,1.44985748]
[1758487755140,0.012,115480.0,115470.0,2.17145748]
[1758487756553,0.012,115480.0,115470.0,2.17141748]
[1758487772562,0.012,115480.0,115470.0,2.17141466]
[1758487773863,0.012,115480.0,115470.0,1.38889466]
[1758487774067,0.012,115480.0,115470.0,2.17137466]
[1758487778361,0.012,115480.0,115470.0,1.44977466]
[1758487778666,0.012,115480.0,115470.0,2.17137466]
[1758487785971,0.012,115480.0,115470.0,1.44977466]
[1758487786268,0.012,115480.0,115470.0,2.17137466]
[1758487789969,0.012,115480.0,115470.0,3.67137466]
[1758487792775,0.012,115480.0,115470.0,3.67129466]
[1758487796683,0.012,115480.0,115470.0,2.88889466]
[1758487796988,0.012,115480.0,115470.0,2.17129466]
[1758487797384,0.012,115480.0,115470.0,3.67129466]
[1758487799986,0.02108066,115480.0,115470.0,3.67129466]
[1758487801686,0.02108066,115480.0,115470.0,2.17129466]
[1758487803486,0.02108066,115480.0,115470.0,2.17089466]
[1758487804186,0.02108066,115480.0,115470.0,1.38849466]
[1758487804391,0.02108066,115480.0,115470.0,2.17085466]
[1758487816296,0.02108066,115480.0,115470.0,1.38849466]
[1758487816597,0.02108066,115480.0,115470.0,2.17085466]
[1758487822396,0.012,115480.0,115470.0,2.17085466]
[1758487823499,0.02102027,115480.0,115470.0,2.17085466]
[1758487826300,0.02102027,115480.0,115470.0,1.44925466]
[1758487826597,0.02102027,115480.0,115470.0,2.17085466]
[1758487832604,0.02102027,115480.0,115470.0,2.17091876]
[1758487841902,0.02102027,115480.0,115470.0,1.38855876]
[1758487842107,0.02102027,115480.0,115470.0,2.17079876]
[1758487842308,0.29132651,115480.0,115470.0,1.89870338]
[1758487842705,0.29132651,115480.0,115470.0,1.89910338]
[1758487842907,0.29132651,115480.0,115470.0,1.627008]
[1758487843097,0.29132651,115480.0,115470.0,1.89910338]
[1758487843599,0.29132651,115480.0,115470.0,1.89870338]
[1758487843804,0.29132651,115480.0,115470.0,1.89910338]
[1758487844507,0.29132651,115480.0,115470.0,1.89870338]
[1758487844705,0.29132651,115480.0,115470.0,1.89910338]
[1758487845009,0.29132651,115480.0,115470.0,1.89870338]
[1758487845608,0.29132651,115480.0,115470.0,1.627008]
[1758487845808,0.29132651,115480.0,115470.0,1.89910338]
[1758487846910,0.29132651,115480.0,115470.0,1.11686338]
[1758487847211,0.29132651,115480.0,115470.0,1.89910338]
[1758487849213,0.29132651,115480.0,115470.0,1.11686338]
[1758487849414,0.29132651,115480.0,115470.0,1.89910338]
[1758487850316,0.29132651,115480.0,115470.0,1.53830338]
[1758487852917,0.29132651,115480.0,115470.0,1.17750338]
[1758487853120,0.29132651,115480.0,115470.0,1.53830338]
[1758487856921,0.29132651,115480.0,115470.0,1.17750338]
[1758487857219,0.29132651,115480.0,115470.0,1.53830338]
[1758487859825,0.29132651,115480.0,115470.0,1.266208]
[1758487860124,0.29132651,115480.0,115470.0,1.53830338]
[1758487862722,0.27932651,115480.0,115470.0,1.53830338]
[1758487862923,0.27132651,115480.0,115470.0,1.53830338]
[1758487865130,0.04420651,115480.0,115470.0,0.75606338]
[1758487865332,0.04420651,115480.0,115470.0,1.53826338]
[1758487865531,0.04420651,115480.0,115470.0,1.265768]
[1758487866225,0.04420651,115480.0,115470.0,1.266168]
[1758487866419,0.04420651,115480.0,115470.0,1.53826338]
[1758487875735,0.04420651,115480.0,115470.0,1.266168]
[1758487875936,0.04420651,115480.0,115470.0,1.53826338]
[1758487878543,0.04420651,115480.0,115470.0,0.75606338]
[1758487878736,0.04420651,115480.0,115470.0,1.53826338]
[1758487882536,0.04420651,115480.0,115470.0,1.17746338]
[1758487882736,0.04420651,115480.0,115470.0,1.53826338]
[1758487893051,0.04420651,115480.0,115470.0,1.17746338]
[1758487893351,0.04420651,115480.0,115470.0,1.53826338]
[1758487894551,0.04420651,115480.0,115470.0,1.53832725]
[1758487896154,0.04420651,115480.0,115470.0,1.266168]
[1758487896353,0.04420651,115480.0,115470.0,1.53832725]
[1758487902254,0.04420651,115480.0,115470.0,1.266168]
[1758487902452,0.04420651,115480.0,115470.0,1.53832725]
[1758487905953,0.04420651,115480.0,115470.0,1.266168]
[1758487906160,0.04420651,115480.0,115470.0,1.53832725]
[1758487906360,0.31636576,115480.0,115470.0,1.53832725]
[1758487907657,0.04420651,115480.0,115470.0,1.53832725]
[1758487920377,0.04420651,115480.0,115470.0,0.39532725]
[1758487920578,0.04420651,115480.0,115470.0,1.53836725]
[1758487920879,0.31636576,115480.0,115470.0,1.53836725]
[1758487923981,0.31636576,115480.0,115470.0,0.75612725]
[1758487924182,0.31636576,115480.0,115470.0,0.483968]
[1758487924380,0.31636576,115480.0,115470.0,1.53840725]
[1758487924676,0.31636576,115480.0,115470.0,1.17720725]
[1758487924881,0.31636576,115480.0,115470.0,1.17764725]
[1758487925082,0.31636576,115480.0,115470.0,1.17724725]
[1758487925282,0.31636576,115480.0,115470.0,1.17764725]
[1758487925881,0.31636576,115480.0,115470.0,0.39532725]
[1758487926084,0.31636576,115480.0,115470.0,1.17764725]
[1758487934093,0.31636576,115480.0,115470.0,1.53844725]
[1758487949297,0.31636576,115480.0,115470.0,0.75612725]
[1758487949596,0.31636576,115480.0,115470.0,1.53828725]
[1758487950596,0.31636576,115480.0,115470.0,0.75612725]
[1758487950796,0.31636576,115480.0,115470.0,1.17748725]
[1758487950992,0.31636576,115480.0,115470.0,1.53828725]
[1758487951189,0.31636576,115480.0,115470.0,1.17748725]
[1758487951795,0.31636576,115480.0,115470.0,0.39532725]
[1758487952293,0.34306821,115480.0,115470.0,0.39532725]
[1758487954602,0.34306821,115480.0,115470.0,0.123168]
[1758487954603,0.3431113,115480.0,115470.0,0.123168]
[1758487958706,0.3431113,115480.0,115470.0,0.483968]
[1758487959006,0.31640885,115480.0,115470.0,0.483968]
[1758487963106,0.31632938,115480.0,115470.0,0.483968]
[1758487970511,0.31632938,115480.0,115470.0,0.123168]
[1758487970709,0.31632938,115480.0,115470.0,0.483968]
[1758487978120,0.04412704,115480.0,115470.0,0.483968]
[1758487981020,0.67712938,115480.0,115470.0,0.122768]
[1758487981324,0.92712938,115480.0,115470.0,0.03662]
[1758487981617,1.73592235,115480.0,115470.0,0.03622]
[1758487981919,1.74117235,115480.0,115470.0,0.03662]
[1758487982121,1.73592235,115480.0,115470.0,0.03622]
[1758487982321,1.73592235,115480.0,115470.0,0.03662]
[1758487982925,1.73592235,115480.0,115470.0,0.1231676]
[1758487986741,1.73592235,115480.0,115470.0,0.03662]
[1758487987234,1.74117235,115480.0,115470.0,0.0014]
[1758487988121,1.74117235,115480.0,115470.0,0.001]
[1758487988334,1.74117235,115480.0,115470.0,0.0014]
[1758487994939,1.74109121,115480.0,115470.0,0.0014]
[1758488000642,1.74121121,115480.0,115470.0,0.0014]
[1758488000843,1.74121121,115480.0,115470.0,0.02419]
[1758488004446,2.10201121,115480.0,115470.0,0.02419]
[1758488006346,1.31981121,115480.0,115470.0,0.02419]
[1758488006546,2.10201121,115480.0,115470.0,0.02419]
[1758488008446,1.31981121,115480.0,115470.0,0.02419]
[1758488008848,2.10201121,115480.0,115470.0,0.02419]
[1758488011046,2.10201121,115480.0,115470.0,0.0014]
[1758488012255,2.13314221,115480.0,115470.0,0.0014]
[1758488016558,2.40550419,115480.0,115470.0,0.0014]
[1758488019250,2.15550419,115480.0,115470.0,0.0014]
[1758488020462,1.37330419,115480.0,115470.0,0.02308]
[1758488020660,2.15550419,115480.0,115470.0,0.02308]
[1758488024363,1.43390419,115480.0,115470.0,0.02308]
[1758488024564,2.15550419,115480.0,115470.0,0.02308]
[1758488041283,2.15550419,115480.0,115470.0,0.0014]
[1758488041685,2.20225497,115480.0,115470.0,0.0014]
[1758488046486,2.20245497,115480.0,115470.0,0.0014]
[1758488049495,1.65789065,115480.0,115470.0,0.0014]
[1758488049691,2.20245497,115480.0,115470.0,0.0014]
[1758488051596,1.79490419,115480.0,115470.0,0.0014]
[1758488052496,1.43410419,115480.0,115470.0,0.0014]
[1758488052694,1.79490419,115480.0,115470.0,0.0014]
[1758488055697,1.43410419,115480.0,115470.0,0.0014]
[1758488055899,1.79490419,115480.0,115470.0,0.0014]
[1758488060604,1.79490419,115480.0,115470.0,0.02369]
[1758488063607,1.79602419,115480.0,115470.0,0.02369]
[1758488064911,1.79602419,115480.0,115470.0,0.0014]
[1758488072815,2.06830635,115480.0,115470.0,0.0014]
[1758488073115,1.79602419,115480.0,115470.0,0.0014]
[1758488075519,2.06830635,115480.0,115470.0,0.0014]
[1758488076018,1.79602419,115480.0,115470.0,0.0014]
[1758488076618,2.06830635,115480.0,115470.0,0.0014]
[1758488077222,2.31830635,115480.0,115470.0,0.0014]
[1758488077407,2.36505713,115480.0,115470.0,0.0014]
[1758488077612,2.36505713,115480.0,115470.0,0.001]
[1758488077820,2.36505713,115480.0,115470.0,0.0014]
[1758488078414,2.33392613,115480.0,115470.0,0.0014]
[1758488078722,2.06176543,115480.0,115470.0,0.0014]
[1758488079119,2.0929387,115480.0,115470.0,0.0014]
[1758488079319,1.81176543,115480.0,115470.0,0.0014]
[1758488080319,1.84293411,115480.0,115470.0,0.0014]
[1758488080519,1.84293411,115480.0,115470.0,0.001]
[1758488080722,1.84293411,115480.0,115470.0,0.0014]
[1758488081822,1.81176543,115480.0,115470.0,0.0014]
[1758488084622,1.53942254,115480.0,115470.0,0.0014]
[1758488084824,1.81176543,115480.0,115470.0,0.0014]
[1758488085525,1.8115159,115480.0,115470.0,0.0014]
[1758488085725,1.53917301,115480.0,115470.0,0.0014]
[1758488087518,1.8115159,115480.0,115470.0,0.0014]
[1758488091717,1.84266828,115480.0,115470.0,0.0014]
[1758488093430,1.57032539,115480.0,115470.0,0.0014]
[1758488094927,1.20952539,115480.0,115470.0,0.0014]
[1758488095136,1.93112539,115480.0,115470.0,0.0014]
[1758488096231,1.14760539,115480.0,115470.0,0.0014]
[1758488096528,1.93092539,115480.0,115470.0,0.0014]
[1758488096734,1.6585825,115480.0,115470.0,0.0014]
[1758488096931,1.93092539,115480.0,115470.0,0.0014]
[1758488100037,1.93092539,115480.0,115460.0,0.0201]
[1758488100332,0.65542289,115470.0,115460.0,0.04295]
[1758488100539,1.01465833,115470.0,115460.0,0.04285]
[1758488101323,1.01465833,115470.0,115460.0,0.04485]
[1758488101736,1.01465833,115470.0,115460.0,0.022]
[1758488102135,1.28700122,115470.0,115460.0,0.022]
[1758488103037,1.29200122,115470.0,115460.0,0.02]
[1758488104335,1.29500122,115470.0,115460.0,0.02]
[1758488105137,1.3261536,115470.0,115460.0,0.02]
[1758488106540,1.3261536,115470.0,115460.0,0.04285]
[1758488107335,1.3261536,115470.0,115460.0,0.02]
[1758488108338,1.3261536,115470.0,115460.0,0.0204]
[1758488112449,1.6869536,115470.0,115460.0,0.0204]
[1758488112650,2.4700336,115470.0,115460.0,0.0204]
[1758488113354,1.6869536,115470.0,115460.0,0.0204]
[1758488113544,2.4699936,115470.0,115460.0,0.0204]
[1758488113740,1.6869536,115470.0,115460.0,0.0204]
[1758488113948,2.4700736,115470.0,115460.0,0.0204]
[1758488115054,1.6869536,115470.0,115460.0,0.0204]
[1758488115254,2.4700336,115470.0,115460.0,0.0204]
[1758488120562,1.6869536,115470.0,115460.0,0.0204]
[1758488120761,2.4701936,115470.0,115460.0,0.0204]
[1758488123562,1.14226782,115470.0,115460.0,0.0204]
[1758488123754,1.92662782,115470.0,115460.0,0.04197]
[1758488124263,2.19897071,115470.0,115460.0,0.04197]
[1758488128369,2.19897071,115470.0,115460.0,0.1285252]
[1758488132068,2.19897071,115470.0,115460.0,0.1069552]
[1758488132468,2.19897071,115470.0,115460.0,0.1300352]
[1758488137581,2.19897071,115470.0,115460.0,0.1069552]
[1758488137876,2.19897071,115470.0,115460.0,0.0204]
[1758488138581,2.47125906,115470.0,115460.0,0.0204]
[1758488138878,2.47125906,115470.0,115460.0,0.04348]
[1758488139471,2.19894344,115470.0,115460.0,0.04348]
[1758488146779,2.19126344,115470.0,115460.0,0.05739]
[1758488147686,2.19122344,115470.0,115460.0,0.05739]
[1758488152682,1.80379161,115470.0,115460.0,0.05739]
[1758488152883,1.83038315,115470.0,115460.0,0.05739]
[1758488155585,1.55806753,115470.0,115460.0,0.05739]
[1758488155891,1.83038315,115470.0,115460.0,0.05739]
[1758488161001,1.83038315,115470.0,115460.0,0.1439452]
[1758488162097,1.83038315,115470.0,115460.0,0.1300352]
[1758488162297,1.83774315,115470.0,115460.0,0.0204]
[1758488166691,2.11005877,115470.0,115460.0,0.0204]
[1758488167804,2.11005877,115470.0,115450.0,0.0866566]
[1758488168007,0.93936124,115460.0,115450.0,0.0001]
[1758488168206,0.98581321,115460.0,115450.0,0.0004]
[1758488168616,0.98581321,115460.0,115440.0,0.1005292]
[1758488168817,1.44019562,115450.0,115440.0,0.03608]
[1758488169114,1.46678716,115450.0,115440.0,0.1225503]
[1758488169314,1.46678716,115450.0,115440.0,0.1229503]
[1758488169810,1.46678716,115450.0,115440.0,0.1249503]
[1758488177520,1.46678716,115450.0,115440.0,0.39726592]
[1758488178123,1.46678716,115450.0,115440.0,0.1249503]
[1758488178321,1.46678716,115450.0,115440.0,0.39726592]
[1758488179525,1.19447154,115450.0,115440.0,0.39726592]
[1758488179712,1.46678716,115450.0,115440.0,0.39726592]
[1758488180821,1.19447154,115450.0,115440.0,0.39726592]
[1758488181119,1.46678716,115450.0,115440.0,0.39726592]
[1758488189317,1.46678716,115450.0,115440.0,0.1249503]
[1758488189627,1.46678716,115450.0,115440.0,0.39726592]
[1758488189829,1.19447154,115450.0,115440.0,0.39726592]
[1758488190131,1.46678716,115450.0,115440.0,0.39726592]
[1758488191233,1.46678716,115450.0,115440.0,0.1249503]
[1758488191420,1.46678716,115450.0,115440.0,0.39726592]
[1758488192531,1.46678716,115450.0,115440.0,0.1249503]
[1758488196529,1.10598716,115450.0,115440.0,0.1249503]
[1758488196833,1.46678716,115450.0,115440.0,0.1249503]
[1758488197034,1.10598716,115450.0,115440.0,0.1249503]
[1758488198032,1.11261716,115450.0,115440.0,0.1249503]
[1758488198234,1.11261716,115450.0,115440.0,0.1110903]
[1758488200637,1.11267976,115450.0,115440.0,0.1110903]
[1758488206239,1.10604976,115450.0,115440.0,0.1240203]
[1758488207442,0.83367154,115450.0,115440.0,0.1240203]
[1758488207644,1.10604976,115450.0,115440.0,0.1240203]
[1758488223257,0.83367154,115450.0,115440.0,0.1240203]
[1758488223456,1.10604976,115450.0,115440.0,0.1240203]
[1758488228257,1.10604976,115450.0,115440.0,0.1110899]
[1758488228258,1.11267976,115450.0,115440.0,0.1110899]
[1758488228462,1.47347976,115450.0,115440.0,0.0024]
[1758488229561,1.47347976,115450.0,115440.0,0.0889699]
[1758488230663,1.47347976,115450.0,115440.0,0.1116999]
[1758488237971,1.11267976,115450.0,115440.0,0.1116999]
[1758488238172,1.47347976,115450.0,115440.0,0.1116999]
[1758488238373,1.11267976,115450.0,115440.0,0.1116999]
[1758488238568,1.47347976,115450.0,115440.0,0.1116999]
[1758488239874,1.11267976,115450.0,115440.0,0.1116999]
[1758488240061,1.47347976,115450.0,115440.0,0.1116999]
[1758488245773,1.20110154,115450.0,115440.0,0.1116999]
[1758488245975,1.47347976,115450.0,115440.0,0.1116999]
[1758488249681,1.47347015,115450.0,115440.0,0.1116999]
[1758488250489,0.41050193,115450.0,115440.0,0.1116999]
[1758488250677,0.41050193,115450.0,115440.0,0.1247399]
[1758488250877,1.19574193,115450.0,115440.0,0.1247399]
[1758488251078,1.46812015,115450.0,115440.0,0.1247399]
[1758488256486,1.46812015,115450.0,115440.0,0.1116999]
[1758488256789,0.69550015,115450.0,115440.0,0.0889699]
[1758488256982,1.48254015,115450.0,115440.0,0.0889699]
[1758488257384,0.69550015,115450.0,115440.0,0.0889699]
[1758488257586,1.48254015,115450.0,115440.0,0.0889699]
[1758488257991,0.69550015,115450.0,115440.0,0.0889699]
[1758488258192,1.48254015,115450.0,115440.0,0.0889699]
[1758488258382,1.48454015,115450.0,115440.0,0.0889699]
[1758488259192,1.48554015,115450.0,115440.0,0.0869699]
[1758488259492,1.48554015,115450.0,115440.0,0.1095499]
[1758488261398,1.48554015,115450.0,115440.0,0.0004]
[1758488261693,1.48554015,115450.0,115440.0,0.1095498]
[1758488262594,1.48555643,115450.0,115440.0,0.1095498]
[1758488263598,0.69851643,115450.0,115440.0,0.1095498]
[1758488263790,1.48547643,115450.0,115440.0,0.1095498]
[1758488264597,0.69851643,115450.0,115440.0,0.1095498]
[1758488264798,1.48543643,115450.0,115440.0,0.1095498]
[1758488265097,0.68589643,115450.0,115440.0,0.1225898]
[1758488265493,1.47285643,115450.0,115440.0,0.1225898]
[1758488265697,0.68589643,115450.0,115440.0,0.1225898]
[1758488266000,1.47285643,115450.0,115440.0,0.1225898]
[1758488267400,0.68589643,115450.0,115440.0,0.1225898]
[1758488267601,1.47277643,115450.0,115440.0,0.1225898]
[1758488270805,1.48539643,115450.0,115440.0,0.1095498]
[1758488272207,1.21300193,115450.0,115440.0,0.1095498]
[1758488272409,1.48539643,115450.0,115440.0,0.1095498]
[1758488274512,0.69851643,115450.0,115440.0,0.1095498]
[1758488274715,1.48523643,115450.0,115440.0,0.1095498]
[1758488275113,1.48515643,115450.0,115440.0,0.1095498]
[1758488277716,1.21276193,115450.0,115440.0,0.1095498]
[1758488277907,1.48515643,115450.0,115440.0,0.1095498]
[1758488279819,1.48514159,115450.0,115440.0,0.1095498]
[1758488280019,1.48502159,115450.0,115440.0,0.1095498]
[1758488281715,0.41348709,115450.0,115440.0,0.1095498]
[1758488281917,0.02956709,115450.0,115440.0,1.5508033]
[1758488282126,1.45198715,115480.0,115470.0,0.1224973]
[1758488282127,0.02228027,115480.0,115470.0,0.1224973]
[1758488282317,0.29457477,115480.0,115470.0,0.3948918]
[1758488282511,0.02218027,115480.0,115470.0,0.3948918]
[1758488282716,0.29457477,115480.0,115470.0,0.3948918]
[1758488283122,0.29457477,115480.0,115470.0,0.7556918]
[1758488284518,0.29557477,115480.0,115470.0,0.7556918]
[1758488284719,0.29657477,115480.0,115470.0,0.7556918]
[1758488286920,0.29657477,115480.0,115470.0,0.4832973]
[1758488287121,0.29657477,115480.0,115470.0,0.7556918]
[1758488290433,0.29657477,115480.0,115470.0,0.4832973]
[1758488290629,0.29657477,115480.0,115470.0,0.3948918]
[1758488290832,0.92976927,115480.0,115470.0,0.02268]
[1758488291027,0.93639927,115480.0,115470.0,0.1092276]
[1758488291227,0.93639927,115480.0,115470.0,0.1096276]
[1758488291524,0.01262,115470.0,115460.0,0.0866551]
[1758488291834,1.4537145,115470.0,115460.0,0.1084451]
[1758488292533,1.4537145,115470.0,115460.0,0.02189]
[1758488292735,1.726109,115470.0,115460.0,0.02189]
[1758488293032,1.976109,115470.0,115460.0,0.02189]
[1758488293626,1.976109,115470.0,115460.0,0.02429]
[1758488294133,2.00510167,115470.0,115460.0,0.02429]
[1758488294735,2.01010167,115470.0,115460.0,0.02229]
[1758488299834,1.984109,115470.0,115460.0,0.02229]
[1758488301142,2.01010574,115470.0,115460.0,0.02229]
[1758488301937,1.984109,115470.0,115460.0,0.02229]
[1758488302531,1.984109,115470.0,115460.0,0.0004]
[1758488302737,2.01011008,115470.0,115460.0,0.0004]
[1758488303136,0.02846,115460.0,115450.0,0.02159]
[1758488303327,0.96005008,115460.0,115450.0,0.02159]
[1758488303730,0.96005008,115460.0,115450.0,0.02199]
[1758488304328,0.96205008,115460.0,115450.0,0.02199]
[1758488305540,0.96605008,115460.0,115450.0,0.02199]
[1758488305740,0.96805008,115460.0,115450.0,0.02199]
[1758488309037,1.32885008,115460.0,115450.0,0.02199]
[1758488316248,1.32885008,115460.0,115450.0,0.0004]
[1758488316444,1.34931183,115460.0,115450.0,0.0004]
[1758488316649,0.0231,115440.0,115430.0,0.1209517]
[1758488316845,0.2954945,115440.0,115430.0,0.1209517]
[1758488317143,0.567889,115440.0,115430.0,0.1209517]
[1758488317349,0.567889,115440.0,115430.0,0.1213517]
[1758488317555,0.928689,115440.0,115430.0,0.28478]
[1758488318048,0.928689,115440.0,115430.0,0.3729574]
[1758488318249,0.928689,115440.0,115430.0,0.3733574]
[1758488318552,0.928689,115440.0,115430.0,0.28678]
[1758488318752,0.928689,115440.0,115430.0,0.28638]
[1758488318953,0.928689,115440.0,115430.0,0.28678]
[1758488319254,0.928689,115440.0,115430.0,0.1233574]
[1758488322653,0.65633484,115440.0,115430.0,0.1233574]
[1758488323553,1.44241484,115440.0,115430.0,0.1233574]
[1758488323952,1.44237484,115440.0,115430.0,0.1233574]
[1758488324156,1.44237484,115440.0,115430.0,0.1229574]
[1758488324357,1.44237484,115440.0,115430.0,0.1233574]
[1758488324956,0.65633484,115440.0,115430.0,0.1233574]
[1758488325158,1.44237484,115440.0,115430.0,0.1233574]
[1758488326159,0.65633484,115440.0,115430.0,0.1233574]
[1758488326762,1.44237484,115440.0,115430.0,0.1233574]
[1758488327761,0.65633484,115440.0,115430.0,0.1233574]
[1758488327963,1.44229484,115440.0,115430.0,0.1233574]
[1758488330865,1.44245484,115440.0,115430.0,0.1233574]
[1758488333167,0.65633484,115440.0,115430.0,0.1233574]
[1758488333362,1.44241484,115440.0,115430.0,0.1233574]
[1758488334766,1.46842328,115440.0,115430.0,0.1233574]
[1758488339963,0.68234328,115440.0,115430.0,0.1233574]
[1758488340164,1.46826328,115440.0,115430.0,0.1233574]
[1758488341470,0.68234328,115440.0,115430.0,0.1233574]
[1758488341669,1.46822328,115440.0,115430.0,0.1233574]
[1758488343269,1.74728812,115440.0,115430.0,0.02364]
[1758488343571,1.74728812,115440.0,115430.0,0.02324]
[1758488343772,1.74728812,115440.0,115430.0,0.0024]
[1758488344772,1.74728812,115440.0,115430.0,0.02543]
[1758488344977,1.74728812,115440.0,115430.0,0.02503]
[1758488345169,1.74728812,115440.0,115430.0,0.02543]
[1758488346067,1.74728812,115440.0,115430.0,0.1120074]
[1758488346572,1.47485328,115440.0,115430.0,0.1120074]
[1758488347170,1.47485328,115440.0,115430.0,0.02543]
[1758488348772,1.74728812,115440.0,115430.0,0.02543]
[1758488348974,1.74728812,115440.0,115430.0,0.1120075]
[1758488351977,1.74728812,115440.0,115430.0,0.02543]
[1758488355488,1.74728812,115440.0,115430.0,0.1120074]
[1758488362491,1.46822328,115440.0,115430.0,0.1248174]
[1758488366497,1.74065812,115440.0,115430.0,0.1248174]
[1758488375503,1.74797664,115440.0,115430.0,0.1120074]
[1758488377702,1.74797664,115440.0,115430.0,0.02543]
[1758488379205,1.74797664,115440.0,115430.0,0.0024]
[1758488379798,1.74797664,115440.0,115430.0,0.02363]
[1758488380297,1.74797664,115440.0,115430.0,0.0024]
[1758488382502,1.74797664,115440.0,115430.0,0.002]
[1758488382807,2.02056799,115440.0,115430.0,0.0024]
[1758488383009,2.02056799,115440.0,115430.0,0.002]
[1758488383194,2.02056554,115440.0,115430.0,0.0024]
[1758488383401,2.27056554,115440.0,115430.0,0.0024]
[1758488383604,2.30171792,115440.0,115430.0,0.002]
[1758488383806,2.30171792,115440.0,115430.0,0.0024]
[1758488384505,2.30171792,115440.0,115430.0,0.002]
[1758488384699,2.30171792,115440.0,115430.0,0.0024]
[1758488386508,2.30171792,115440.0,115430.0,0.002]
[1758488386807,2.30171792,115440.0,115430.0,0.0024]
[1758488387509,1.51583792,115440.0,115430.0,0.0024]
[1758488387710,2.30123792,115440.0,115430.0,0.0024]
[1758488389505,2.30123792,115440.0,115410.0,0.0008]
[1758488389711,0.94107402,115420.0,115410.0,0.0008]
[1758488389905,1.75304853,115420.0,115410.0,0.0008]
[1758488390109,1.75304853,115420.0,115400.0,0.1001956]